[Event "African Online-ch Women 2021"]
[Site "Online"]
[Date "2021.02.01"]
[Round "4.4"]
[White "Rodriguez Guevara, Celia M."]
[Black "Wanjiru, Lucy"]
[Result "1-0"]
[ECO "C54"]
[WhiteElo "1849"]
[BlackElo "1623"]
[Annotator "NA RC"]
[PlyCount "95"]
[EventDate "2021.02.01"]
[EventType "swiss"]
[EventCountry "NET"]
[SourceTitle "playchess.com"]
[Source "ChessBase"]
[SourceQuality "1"]
[TimeControl "1500+10"]

1. e4 {[%emt 0:00:00]} e5 {[%emt 0:00:05]} 2. Nf3 {[%emt 0:00:06]} Nc6 {[%emt 0:00:03]} 3. Bc4 {[%emt 0:00:10]} Nf6 {[%emt 0:00:05]} 4. d3 {[%emt 0:00:05]} Bc5 {[%emt 0:00:04]} 5. O-O {[%emt 0:00:19]} d6 {[%emt 0:00:05]} 6. c3 {[%emt 0:00:03]} a6 {[%emt 0:00:07]} 7. Bb3 {[%emt 0:00:02]} h6 {[%emt 0:00:06]} 8. Nbd2 {[%emt 0:00:43]} Bg4 {[%emt 0:00:20]} 9. Re1 {[%emt 0:00:15]} Qd7 {[%emt 0:00:25]} 10. h3 {[%emt 0:00:42]} Bh5 {[%emt 0:00:32]} 11. Nf1 {[%emt 0:00:08]} Bg6 {[%emt 0:00:19]} 12. Ng3 {[%emt 0:00:51]} O-O {[%emt 0:00:05]} 13. Nh4 {[%emt 0:00:55]} Kh7 {[%emt 0:00:49]} 14. Nhf5 {[%emt 0:01:30]} Ne7 {[%emt 0:00:54]} 15. Qf3 {[%emt 0:01:18]} Nxf5 {[%emt 0:02:05]} 16. exf5 {[%emt 0:00:14]} Ng8 {[%emt 0:02:18]} 17. Qe4 {[%emt 0:01:06]} Ne7 {[%emt 0:00:16]} 18. fxg6+ {[%emt 0:00:21]} fxg6 {[%emt 0:00:16]} 19. Be3 {[%emt 0:01:08]} d5 {[%emt 0:00:59]} 20. Qg4 {[%emt 0:00:59]} Qd6 {[%emt 0:02:54]} 21. Bxc5 {[%emt 0:00:19]} Qxc5 {[%emt 0:00:04]} 22. d4 {[%emt 0:00:06]} exd4 {[%emt 0:00:11]} 23. Qxd4 {[%emt 0:00:13]} Qd6 {[%emt 0:00:10]} 24. Rad1 {[%emt 0:00:49]} Rad8 {[%emt 0:00:19]} 25. Qe5 {[%emt 0:01:21]} Rf7 {[%emt 0:03:36]} 26. Qxd6 {[%emt 0:00:36]} Rxd6 {[%emt 0:00:03]} 27. c4 {[%emt 0:00:23]} c6 {[%emt 0:00:19]} 28. cxd5 {[%emt 0:01:04]} cxd5 {[%emt 0:00:10]} 29. Re5 {[%emt 0:01:08]} Rdf6 {[%emt 0:01:22]} 30. f3 {[%emt 0:01:08]} Rb6 {[%emt 0:00:44]} 31. Rde1 {[%emt 0:01:05]} Nc6 {[%emt 0:00:19]} 32. Rxd5 {[%emt 0:00:13]} Rc7 {[%emt 0:00:27]} 33. Rd6 {[%emt 0:00:56]} Rb4 {[%emt 0:00:41]} 34. Bc2 {[%emt 0:00:26]} Ne5 {[%emt 0:00:14]} 35. Bb3 {[%emt 0:01:07]} Nc4 {[%emt 0:01:04]} 36. Rd8 {[%emt 0:01:14]} Rxb3 {[%emt 0:02:46]} 37. axb3 {[%emt 0:00:06]} Nxb2 {[%emt 0:00:02]} 38. Ree8 {[%emt 0:00:23]} g5 {[%emt 0:00:03]} 39. Rc8 {[%emt 0:01:18]} Rd7 {[%emt 0:00:08]} 40. Rcd8 {[%emt 0:00:23]} Rc7 {[%emt 0:00:06]} 41. Rh8+ {[%emt 0:00:03]} Kg6 {[%emt 0:00:02]} 42. Rd6+ {[%emt 0:00:04]} Kf7 {[%emt 0:00:06]} 43. Rhd8 {[%emt 0:00:20]} Rc1+ {[%emt 0:00:09]} 44. Kh2 {[%emt 0:00:05]} a5 {[%emt 0:00:04]} 45. R8d7+ {[%emt 0:00:34]} Kg8 {[%emt 0:00:06]} 46. Rxb7 {[%emt 0:00:05]} a4 {[%emt 0:00:07]} 47. Nf5 {[%emt 0:00:20]} Rc8 {[%emt 0:00:57]} 48. Ne7+ {[%emt 0:00:13]} 1-0

[Event "African Online-ch Women 2021"]
[Site "Online"]
[Date "2021.02.01"]
[Round "4.6"]
[White "Ben Said, Safa"]
[Black "Francis, Onkemetse"]
[Result "0-1"]
[ECO "B01"]
[WhiteElo "1577"]
[BlackElo "1798"]
[Annotator "NA RC"]
[PlyCount "170"]
[EventDate "2021.02.01"]
[EventType "swiss"]
[EventCountry "NET"]
[SourceTitle "playchess.com"]
[Source "ChessBase"]
[SourceQuality "1"]
[TimeControl "1500+10"]

1. e4 {[%emt 0:00:00]} d5 {[%emt 0:00:04]} 2. exd5 {[%emt 0:00:07]} Qxd5 {[%emt 0:00:02]} 3. Nc3 {[%emt 0:00:06]} Qa5 {[%emt 0:00:04]} 4. Bc4 {[%emt 0:00:15]} Nf6 {[%emt 0:00:11]} 5. Nf3 {[%emt 0:00:35]} Bg4 {[%emt 0:01:28]} 6. d3 {[%emt 0:01:34]} c6 {[%emt 0:00:13]} 7. Bf4 {[%emt 0:01:11]} e6 {[%emt 0:00:20]} 8. O-O {[%emt 0:00:25]} Qh5 {[%emt 0:04:03]} 9. Ne4 {[%emt 0:01:49]} Nxe4 {[%emt 0:04:22]} 10. dxe4 {[%emt 0:00:06]} Bxf3 {[%emt 0:00:02]} 11. Qxf3 {[%emt 0:01:27]} Qxf3 {[%emt 0:00:05]} 12. gxf3 {[%emt 0:00:03]} Nd7 {[%emt 0:00:03]} 13. Rfd1 {[%emt 0:01:05]} Be7 {[%emt 0:01:35]} 14. Rd2 {[%emt 0:00:35]} O-O-O {[%emt 0:00:27]} 15. Rad1 {[%emt 0:00:40]} Nb6 {[%emt 0:00:10]} 16. Bb3 {[%emt 0:02:27]} Rxd2 {[%emt 0:00:07]} 17. Rxd2 {[%emt 0:00:04]} Rd8 {[%emt 0:00:19]} 18. Rxd8+ {[%emt 0:00:19]} Kxd8 {[%emt 0:00:04]} 19. Be3 {[%emt 0:00:03]} c5 {[%emt 0:00:18]} 20. Kf1 {[%emt 0:00:20]} Kc7 {[%emt 0:00:14]} 21. Ke2 {[%emt 0:00:37]} Kc6 {[%emt 0:00:04]} 22. Kd3 {[%emt 0:01:43]} Nd7 {[%emt 0:00:20]} 23. f4 {[%emt 0:00:12]} b5 {[%emt 0:00:07]} 24. c4 {[%emt 0:00:12]} a6 {[%emt 0:00:10]} 25. Bc2 {[%emt 0:00:18]} g6 {[%emt 0:00:27]} 26. a3 {[%emt 0:01:49]} Bf6 {[%emt 0:00:30]} 27. e5 {[%emt 0:00:37]} Be7 {[%emt 0:00:04]} 28. b3 {[%emt 0:00:36]} Bh4 {[%emt 0:02:27]} 29. Kc3 {[%emt 0:01:51]} Be7 {[%emt 0:00:10]} 30. Be4+ {[%emt 0:00:25]} Kc7 {[%emt 0:00:07]} 31. cxb5 {[%emt 0:00:46]} axb5 {[%emt 0:00:04]} 32. Bd3 {[%emt 0:00:08]} Kc6 {[%emt 0:00:26]} 33. Be4+ {[%emt 0:00:08]} Kc7 {[%emt 0:00:32]} 34. Bd3 {[%emt 0:00:05]} Kb6 {[%emt 0:02:02]} 35. b4 {[%emt 0:00:16]} Nb8 {[%emt 0:00:24]} 36. Be4 {[%emt 0:00:14]} Nd7 {[%emt 0:00:27]} 37. Kb3 {[%emt 0:01:21]} Ka6 {[%emt 0:01:39]} 38. Bc6 {[%emt 0:00:13]} c4+ {[%emt 0:01:33]} 39. Kc3 {[%emt 0:00:11]} Nb6 {[%emt 0:00:03]} 40. Bxb6 {[%emt 0:00:29]} Kxb6 {[%emt 0:00:04]} 41. Be8 {[%emt 0:00:07]} f6 {[%emt 0:00:04]} 42. Bf7 {[%emt 0:00:04]} fxe5 {[%emt 0:00:11]} 43. fxe5 {[%emt 0:00:04]} Bg5 {[%emt 0:00:31]} 44. Bxe6 {[%emt 0:00:16]} Bf4 {[%emt 0:00:04]} 45. h3 {[%emt 0:00:14]} Bxe5+ {[%emt 0:00:03]} 46. Kc2 {[%emt 0:00:04]} g5 {[%emt 0:00:07]} 47. Bg8 {[%emt 0:00:08]} h6 {[%emt 0:00:03]} 48. f3 {[%emt 0:00:24]} Bd4 {[%emt 0:00:17]} 49. Bf7 {[%emt 0:00:07]} Bf2 {[%emt 0:00:13]} 50. Be8 {[%emt 0:00:06]} Be1 {[%emt 0:00:04]} 51. Kd1 {[%emt 0:00:16]} Bc3 {[%emt 0:00:23]} 52. Kc2 {[%emt 0:00:09]} Be5 {[%emt 0:00:06]} 53. a4 {[%emt 0:00:11]} bxa4 {[%emt 0:00:10]} 54. Bxa4 {[%emt 0:00:05]} c3 {[%emt 0:00:23]} 55. Be8 {[%emt 0:00:09]} Kc7 {[%emt 0:00:09]} 56. Bg6 {[%emt 0:00:09]} Kd6 {[%emt 0:00:06]} 57. Kd3 {[%emt 0:00:04]} Ke6 {[%emt 0:00:21]} 58. Kc4 {[%emt 0:00:06]} Kf6 {[%emt 0:00:04]} 59. Be4 {[%emt 0:00:09]} Ke6 {[%emt 0:00:19]} 60. b5 {[%emt 0:00:17]} Kd6 {[%emt 0:00:03]} 61. b6 {[%emt 0:00:04]} h5 {[%emt 0:01:10]} 62. b7 {[%emt 0:00:45]} Kc7 {[%emt 0:00:03]} 63. Kd5 {[%emt 0:00:04]} Bf4 {[%emt 0:00:16]} 64. Ke6 {[%emt 0:00:07]} h4 {[%emt 0:00:03]} 65. Kf5 {[%emt 0:00:12]} Kb6 {[%emt 0:01:16]} 66. Ke6 {[%emt 0:00:10]} Kb5 {[%emt 0:01:04]} 67. Kd7 {[%emt 0:00:06]} Kb4 {[%emt 0:00:03]} 68. Kc8 {[%emt 0:00:11]} Kb3 {[%emt 0:00:02]} 69. b8=Q+ {[%emt 0:00:11]} Bxb8 {[%emt 0:00:03]} 70. Kxb8 {[%emt 0:00:04]} c2 {[%emt 0:00:02]} 71. Bxc2+ {[%emt 0:00:10]} Kxc2 {[%emt 0:00:02]} 72. Kc7 {[%emt 0:00:02]} Kd3 {[%emt 0:00:03]} 73. Kd6 {[%emt 0:00:07]} Ke3 {[%emt 0:00:02]} 74. Ke5 {[%emt 0:00:03]} Kxf3 {[%emt 0:00:02]} 75. Kf5 {[%emt 0:00:03]} g4 {[%emt 0:01:20]} 76. hxg4 {[%emt 0:00:11]} h3 {[%emt 0:00:02]} 77. g5 {[%emt 0:00:04]} h2 {[%emt 0:00:02]} 78. g6 {[%emt 0:00:03]} h1=Q {[%emt 0:00:03]} 79. g7 {[%emt 0:00:03]} Qh7+ {[%emt 0:00:13]} 80. Kf6 {[%emt 0:00:03]} Qg8 {[%emt 0:00:03]} 81. Kg6 {[%emt 0:00:03]} Ke4 {[%emt 0:00:03]} 82. Kf6 {[%emt 0:00:06]} Kd5 {[%emt 0:00:03]} 83. Kg6 {[%emt 0:00:04]} Ke6 {[%emt 0:00:03]} 84. Kh6 {[%emt 0:00:03]} Kf6 {[%emt 0:00:06]} 85. Kh5 {[%emt 0:00:03]} Qxg7 {[%emt 0:00:02]} 0-1

[Event "African Online-ch Women 2021"]
[Site "Online"]
[Date "2021.02.01"]
[Round "4.7"]
[White "McPherson, Naleli"]
[Black "Miladi, Amen"]
[Result "1-0"]
[ECO "B20"]
[WhiteElo "1303"]
[BlackElo "1802"]
[Annotator "NA RC"]
[PlyCount "77"]
[EventDate "2021.02.01"]
[EventType "swiss"]
[EventCountry "NET"]
[SourceTitle "playchess.com"]
[Source "ChessBase"]
[SourceQuality "1"]
[TimeControl "1500+10"]

1. e4 {[%emt 0:00:00]} c5 {[%emt 0:00:05]} 2. c4 {[%emt 0:00:22]} Nc6 {[%emt 0:00:09]} 3. d3 {[%emt 0:00:45]} g6 {[%emt 0:00:12]} 4. Nc3 {[%emt 0:00:17]} Bg7 {[%emt 0:00:06]} 5. Nf3 {[%emt 0:00:43]} d6 {[%emt 0:00:07]} 6. Be2 {[%emt 0:00:13]} a6 {[%emt 0:00:11]} 7. a4 {[%emt 0:00:18]} Nf6 {[%emt 0:00:16]} 8. O-O {[%emt 0:00:29]} O-O {[%emt 0:00:05]} 9. Be3 {[%emt 0:00:31]} h6 {[%emt 0:00:32]} 10. h3 {[%emt 0:04:32]} Ne8 {[%emt 0:01:05]} 11. d4 {[%emt 0:00:42]} cxd4 {[%emt 0:00:55]} 12. Bxd4 {[%emt 0:00:53]} Nxd4 {[%emt 0:00:06]} 13. Nxd4 {[%emt 0:00:10]} Nc7 {[%emt 0:00:44]} 14. f4 {[%emt 0:01:36]} Ne8 {[%emt 0:04:27]} 15. a5 {[%emt 0:00:23]} e5 {[%emt 0:01:49]} 16. fxe5 {[%emt 0:00:57]} dxe5 {[%emt 0:00:03]} 17. Nf3 {[%emt 0:00:17]} Qe7 {[%emt 0:00:07]} 18. Nd5 {[%emt 0:00:25]} Qc5+ {[%emt 0:00:04]} 19. Kh1 {[%emt 0:00:20]} Nd6 {[%emt 0:00:11]} 20. b4 {[%emt 0:00:41]} Qa7 {[%emt 0:01:26]} 21. Ne7+ {[%emt 0:00:13]} Kh7 {[%emt 0:00:06]} 22. Qxd6 {[%emt 0:00:06]} Be6 {[%emt 0:00:21]} 23. Nd5 {[%emt 0:00:41]} Rfd8 {[%emt 0:00:58]} 24. Qc7 {[%emt 0:00:24]} Bxd5 {[%emt 0:01:42]} 25. cxd5 {[%emt 0:00:19]} Qe3 {[%emt 0:00:16]} 26. Rfe1 {[%emt 0:00:44]} Qxe4 {[%emt 0:00:23]} 27. Bxa6 {[%emt 0:00:46]} Qxd5 {[%emt 0:00:18]} 28. Bxb7 {[%emt 0:00:24]} Ra7 {[%emt 0:00:32]} 29. Bxd5 {[%emt 0:00:27]} Rxc7 {[%emt 0:00:03]} 30. Rad1 {[%emt 0:00:37]} Rcd7 {[%emt 0:00:45]} 31. Bb3 {[%emt 0:00:54]} Rxd1 {[%emt 0:00:15]} 32. Rxd1 {[%emt 0:00:25]} Rxd1+ {[%emt 0:00:04]} 33. Bxd1 {[%emt 0:00:06]} e4 {[%emt 0:00:02]} 34. Ng1 {[%emt 0:00:49]} Bc3 {[%emt 0:00:09]} 35. a6 {[%emt 0:00:13]} Bd4 {[%emt 0:00:20]} 36. Ne2 {[%emt 0:00:18]} Ba7 {[%emt 0:00:19]} 37. b5 {[%emt 0:00:31]} Kg7 {[%emt 0:00:21]} 38. Nc3 {[%emt 0:00:22]} Bd4 {[%emt 0:01:06]} 39. Na4 {[%emt 0:00:51]} 1-0

[Event "African Online-ch Women 2021"]
[Site "Online"]
[Date "2021.02.01"]
[Round "4.8"]
[White "Shaba, Linda Dalitso"]
[Black "Botlhole, Kgalalelo"]
[Result "1-0"]
[ECO "E01"]
[WhiteElo "1603"]
[BlackElo "1705"]
[Annotator "NA RC"]
[PlyCount "121"]
[EventDate "2021.02.01"]
[EventType "swiss"]
[EventCountry "NET"]
[SourceTitle "playchess.com"]
[Source "ChessBase"]
[SourceQuality "1"]
[TimeControl "1500+10"]

1. d4 {[%emt 0:00:10]} d5 {[%emt 0:03:03]} 2. c4 {[%emt 0:00:10]} e6 {[%emt 0:00:04]} 3. Nf3 {[%emt 0:00:06]} Nf6 {[%emt 0:00:03]} 4. g3 {[%emt 0:00:03]} c6 {[%emt 0:00:02]} 5. Bg2 {[%emt 0:00:06]} Nbd7 {[%emt 0:00:02]} 6. O-O {[%emt 0:00:57]} Bd6 {[%emt 0:00:07]} 7. Qc2 {[%emt 0:00:26]} O-O {[%emt 0:00:10]} 8. Bg5 {[%emt 0:01:20]} dxc4 {[%emt 0:00:23]} 9. Nbd2 {[%emt 0:01:04]} c5 {[%emt 0:01:17]} 10. Nxc4 {[%emt 0:00:16]} Be7 {[%emt 0:00:04]} 11. Rfd1 {[%emt 0:00:31]} Nd5 {[%emt 0:00:24]} 12. Bxe7 {[%emt 0:00:53]} Qxe7 {[%emt 0:00:05]} 13. e4 {[%emt 0:01:22]} Nb4 {[%emt 0:00:12]} 14. Qb3 {[%emt 0:00:36]} Nf6 {[%emt 0:01:40]} 15. Nfe5 {[%emt 0:01:45]} b5 {[%emt 0:02:23]} 16. Ne3 {[%emt 0:04:40]} c4 {[%emt 0:00:09]} 17. Qc3 {[%emt 0:00:22]} Bb7 {[%emt 0:00:09]} 18. a3 {[%emt 0:00:47]} Nc6 {[%emt 0:01:10]} 19. Nxc6 {[%emt 0:00:26]} Bxc6 {[%emt 0:00:04]} 20. d5 {[%emt 0:01:54]} exd5 {[%emt 0:00:06]} 21. Nxd5 {[%emt 0:00:54]} Bxd5 {[%emt 0:00:16]} 22. exd5 {[%emt 0:02:51]} Rad8 {[%emt 0:00:06]} 23. a4 {[%emt 0:02:01]} a6 {[%emt 0:00:11]} 24. axb5 {[%emt 0:00:04]} axb5 {[%emt 0:00:02]} 25. Ra5 {[%emt 0:00:34]} Rb8 {[%emt 0:01:16]} 26. b3 {[%emt 0:00:19]} Rfc8 {[%emt 0:01:08]} 27. bxc4 {[%emt 0:01:16]} bxc4 {[%emt 0:00:36]} 28. d6 {[%emt 0:00:26]} Qd8 {[%emt 0:00:13]} 29. d7 {[%emt 0:01:29]} Rc7 {[%emt 0:00:17]} 30. Bh3 {[%emt 0:00:27]} h6 {[%emt 0:00:45]} 31. Ra4 {[%emt 0:00:29]} Rb3 {[%emt 0:06:20]} 32. Qc2 {[%emt 0:00:06]} Nxd7 {[%emt 0:00:40]} 33. Rxc4 {[%emt 0:00:21]} Rbb7 {[%emt 0:01:47]} 34. Rxc7 {[%emt 0:00:04]} Rxc7 {[%emt 0:00:06]} 35. Qd2 {[%emt 0:00:05]} Qg5 {[%emt 0:01:52]} 36. Qxg5 {[%emt 0:00:10]} hxg5 {[%emt 0:00:03]} 37. Rxd7 {[%emt 0:00:05]} Rc1+ {[%emt 0:00:03]} 38. Kg2 {[%emt 0:00:03]} f6 {[%emt 0:00:15]} 39. Bf5 {[%emt 0:00:16]} Rc5 {[%emt 0:00:08]} 40. Bg6 {[%emt 0:00:10]} Rc8 {[%emt 0:00:11]} 41. Re7 {[%emt 0:00:11]} Kf8 {[%emt 0:00:04]} 42. Rf7+ {[%emt 0:00:07]} Kg8 {[%emt 0:00:05]} 43. Ra7 {[%emt 0:00:03]} Rd8 {[%emt 0:00:10]} 44. Kf3 {[%emt 0:00:19]} Kf8 {[%emt 0:00:06]} 45. Ke4 {[%emt 0:00:22]} Rd2 {[%emt 0:00:08]} 46. Ke3 {[%emt 0:00:09]} Rd8 {[%emt 0:00:05]} 47. h4 {[%emt 0:00:04]} gxh4 {[%emt 0:00:05]} 48. gxh4 {[%emt 0:00:02]} Kg8 {[%emt 0:00:08]} 49. Ke4 {[%emt 0:00:08]} Kf8 {[%emt 0:00:08]} 50. f4 {[%emt 0:00:13]} Rb8 {[%emt 0:00:49]} 51. Kf5 {[%emt 0:00:19]} Rb5+ {[%emt 0:00:16]} 52. Ke6 {[%emt 0:00:07]} Rb6+ {[%emt 0:00:07]} 53. Kd7 {[%emt 0:00:10]} Rb8 {[%emt 0:00:11]} 54. Rc7 {[%emt 0:00:04]} Ra8 {[%emt 0:00:59]} 55. Rc8+ {[%emt 0:00:14]} Rxc8 {[%emt 0:00:04]} 56. Kxc8 {[%emt 0:00:02]} Ke7 {[%emt 0:00:02]} 57. Kc7 {[%emt 0:00:06]} Ke6 {[%emt 0:00:04]} 58. Kd8 {[%emt 0:00:05]} f5 {[%emt 0:00:07]} 59. Ke8 {[%emt 0:00:07]} Kf6 {[%emt 0:00:02]} 60. h5 {[%emt 0:00:04]} Ke6 {[%emt 0:00:08]} 61. Kf8 {[%emt 0:00:02]} 1-0

[Event "African Online-ch Women 2021"]
[Site "Online"]
[Date "2021.02.01"]
[Round "4.9"]
[White "Farnela, Nuzela Zacarias Musi"]
[Black "Maingi, Sasha"]
[Result "1-0"]
[ECO "B11"]
[WhiteElo "1431"]
[BlackElo "1599"]
[Annotator "NA RC"]
[PlyCount "85"]
[EventDate "2021.02.01"]
[EventType "swiss"]
[EventCountry "NET"]
[SourceTitle "playchess.com"]
[Source "ChessBase"]
[SourceQuality "1"]
[TimeControl "1500+10"]

1. e4 {[%emt 0:18:29]} c6 {[%emt 0:00:11]} 2. Nf3 {[%emt 0:00:08]} d5 {[%emt 0:00:06]} 3. Nc3 {[%emt 0:00:28]} Bg4 {[%emt 0:00:07]} 4. d3 {[%emt 0:00:07]} e6 {[%emt 0:00:28]} 5. h3 {[%emt 0:00:05]} Bxf3 {[%emt 0:00:08]} 6. Qxf3 {[%emt 0:00:07]} Nd7 {[%emt 0:00:07]} 7. Be2 {[%emt 0:00:12]} Ngf6 {[%emt 0:03:52]} 8. Bd2 {[%emt 0:00:13]} Be7 {[%emt 0:01:15]} 9. a3 {[%emt 0:00:23]} Qb6 {[%emt 0:01:58]} 10. Rb1 {[%emt 0:04:15]} d4 {[%emt 0:02:39]} 11. Na2 {[%emt 0:00:16]} Bxa3 {[%emt 0:02:50]} 12. O-O {[%emt 0:00:25]} Bd6 {[%emt 0:00:29]} 13. c3 {[%emt 0:00:05]} Be5 {[%emt 0:00:50]} 14. cxd4 {[%emt 0:00:12]} Bxd4 {[%emt 0:00:13]} 15. Be3 {[%emt 0:00:05]} O-O {[%emt 0:01:08]} 16. Nc3 {[%emt 0:00:09]} Ne5 {[%emt 0:02:43]} 17. Qg3 {[%emt 0:00:29]} Rfd8 {[%emt 0:01:14]} 18. Rfd1 {[%emt 0:00:22]} Bxe3 {[%emt 0:00:36]} 19. fxe3 {[%emt 0:00:05]} c5 {[%emt 0:00:34]} 20. Qxe5 {[%emt 0:00:05]} c4 {[%emt 0:00:38]} 21. Qg3 {[%emt 0:00:14]} cxd3 {[%emt 0:00:22]} 22. Rxd3 {[%emt 0:00:05]} Rxd3 {[%emt 0:00:09]} 23. Bxd3 {[%emt 0:00:05]} Rd8 {[%emt 0:00:04]} 24. Be2 {[%emt 0:00:04]} g6 {[%emt 0:01:04]} 25. Kf2 {[%emt 0:00:05]} Rd2 {[%emt 0:00:09]} 26. Qe5 {[%emt 0:00:22]} Kg7 {[%emt 0:00:19]} 27. Qb5 {[%emt 0:00:05]} Qc7 {[%emt 0:00:19]} 28. Rd1 {[%emt 0:00:11]} Rxd1 {[%emt 0:00:43]} 29. Bxd1 {[%emt 0:00:07]} a6 {[%emt 0:00:05]} 30. Qd3 {[%emt 0:00:08]} Qe5 {[%emt 0:00:10]} 31. Qd4 {[%emt 0:00:08]} Qg5 {[%emt 0:00:26]} 32. e5 {[%emt 0:00:13]} Ng8 {[%emt 0:00:44]} 33. Qf4 {[%emt 0:00:06]} Qd8 {[%emt 0:00:23]} 34. Qd4 {[%emt 0:00:07]} Qc7 {[%emt 0:00:17]} 35. Bf3 {[%emt 0:00:05]} b5 {[%emt 0:00:06]} 36. Be2 {[%emt 0:00:21]} Qa5 {[%emt 0:00:21]} 37. Ne4 {[%emt 0:00:27]} Qc7 {[%emt 0:00:25]} 38. Nf6 {[%emt 0:00:09]} Nh6 {[%emt 0:00:22]} 39. Ne8+ {[%emt 0:00:04]} Kg8 {[%emt 0:00:46]} 40. Nxc7 {[%emt 0:00:03]} Nf5 {[%emt 0:00:14]} 41. Qd8+ {[%emt 0:00:10]} Kg7 {[%emt 0:00:03]} 42. Qf6+ {[%emt 0:00:19]} Kh6 {[%emt 0:00:04]} 43. g4 {[%emt 0:00:11]} 1-0

[Event "African Online-ch Women 2021"]
[Site "Online"]
[Date "2021.02.01"]
[Round "4.10"]
[White "Ndirangu, Joyce Nyaruai"]
[Black "Madelta Glenda"]
[Result "0-1"]
[ECO "D02"]
[WhiteElo "1659"]
[BlackElo "1420"]
[Annotator "NA RC"]
[PlyCount "80"]
[EventDate "2021.02.01"]
[EventType "swiss"]
[EventCountry "NET"]
[SourceTitle "playchess.com"]
[Source "ChessBase"]
[SourceQuality "1"]
[TimeControl "1500+10"]

1. d4 {[%emt 0:00:00]} d5 {[%emt 0:00:05]} 2. Nf3 {[%emt 0:00:04]} Bf5 {[%emt 0:00:07]} 3. Bf4 {[%emt 0:00:06]} e6 {[%emt 0:00:04]} 4. e3 {[%emt 0:00:02]} Nf6 {[%emt 0:00:06]} 5. Be2 {[%emt 0:00:18]} Bd6 {[%emt 0:01:18]} 6. Ne5 {[%emt 0:02:19]} h6 {[%emt 0:00:41]} 7. Nd2 {[%emt 0:00:25]} Nc6 {[%emt 0:04:53]} 8. c3 {[%emt 0:01:08]} Ne7 {[%emt 0:02:14]} 9. Qb3 {[%emt 0:02:01]} Qc8 {[%emt 0:01:59]} 10. c4 {[%emt 0:03:30]} dxc4 {[%emt 0:03:07]} 11. Bxc4 {[%emt 0:04:13]} O-O {[%emt 0:00:06]} 12. O-O {[%emt 0:00:19]} a6 {[%emt 0:00:05]} 13. a4 {[%emt 0:01:33]} Ng6 {[%emt 0:01:39]} 14. Nxg6 {[%emt 0:01:01]} Bxg6 {[%emt 0:00:06]} 15. Bg3 {[%emt 0:00:07]} Rb8 {[%emt 0:01:06]} 16. Rfc1 {[%emt 0:00:18]} Qd8 {[%emt 0:00:18]} 17. Nf3 {[%emt 0:04:31]} Bxg3 {[%emt 0:00:57]} 18. hxg3 {[%emt 0:00:03]} Be4 {[%emt 0:00:04]} 19. Ne5 {[%emt 0:00:18]} c6 {[%emt 0:00:18]} 20. a5 {[%emt 0:00:42]} Bd5 {[%emt 0:00:16]} 21. f3 {[%emt 0:00:09]} Qd6 {[%emt 0:00:40]} 22. Kf2 {[%emt 0:00:28]} Bxc4 {[%emt 0:00:50]} 23. Nxc4 {[%emt 0:00:15]} Qd5 {[%emt 0:00:07]} 24. Qc3 {[%emt 0:01:09]} Qb5 {[%emt 0:00:38]} 25. e4 {[%emt 0:00:11]} Nd7 {[%emt 0:00:19]} 26. Ra3 {[%emt 0:00:18]} Qg5 {[%emt 0:01:49]} 27. Qe3 {[%emt 0:00:59]} Qe7 {[%emt 0:00:21]} 28. Rb3 {[%emt 0:00:23]} Rfc8 {[%emt 0:00:16]} 29. e5 {[%emt 0:00:12]} c5 {[%emt 0:00:32]} 30. Nd6 {[%emt 0:00:11]} cxd4 {[%emt 0:02:13]} 31. Rxc8+ {[%emt 0:00:04]} Rxc8 {[%emt 0:00:02]} 32. Qxd4 {[%emt 0:00:02]} Rc7 {[%emt 0:00:07]} 33. Rxb7 {[%emt 0:02:33]} Rxb7 {[%emt 0:00:06]} 34. Nxb7 {[%emt 0:00:06]} Nxe5 {[%emt 0:00:06]} 35. Qb6 {[%emt 0:00:32]} Nc4 {[%emt 0:00:55]} 36. Qc6 {[%emt 0:00:12]} Qb4 {[%emt 0:01:10]} 37. Qxa6 {[%emt 0:00:10]} Qxb2+ {[%emt 0:00:06]} 38. Kg1 {[%emt 0:00:03]} Ne3 {[%emt 0:00:20]} 39. Qf1 {[%emt 0:00:20]} Nxf1 {[%emt 0:00:03]} 40. Kxf1 {[%emt 0:00:02]} Qxb7 {[%emt 0:00:04]} 0-1

[Event "African Online-ch Women 2021"]
[Site "Online"]
[Date "2021.02.01"]
[Round "4.11"]
[White "Vilhete, Vania Fausto Da T."]
[Black "Karania, Saloni"]
[Result "1-0"]
[ECO "D07"]
[WhiteElo "1799"]
[BlackElo "1304"]
[Annotator "NA RC"]
[PlyCount "97"]
[EventDate "2021.02.01"]
[EventType "swiss"]
[EventCountry "NET"]
[SourceTitle "playchess.com"]
[Source "ChessBase"]
[SourceQuality "1"]
[TimeControl "1500+10"]

1. d4 {[%emt 0:00:00]} d5 {[%emt 0:00:08]} 2. c4 {[%emt 0:00:06]} e6 {[%emt 0:00:20]} 3. Nf3 {[%emt 0:00:07]} Nc6 {[%emt 0:00:14]} 4. e3 {[%emt 0:00:05]} Nf6 {[%emt 0:00:19]} 5. Bd3 {[%emt 0:00:06]} g6 {[%emt 0:00:10]} 6. O-O {[%emt 0:00:08]} Bg7 {[%emt 0:00:03]} 7. Nbd2 {[%emt 0:00:09]} O-O {[%emt 0:00:31]} 8. b3 {[%emt 0:00:18]} Ne7 {[%emt 0:00:17]} 9. Bb2 {[%emt 0:00:08]} c6 {[%emt 0:00:21]} 10. Rc1 {[%emt 0:00:10]} Re8 {[%emt 0:00:42]} 11. Re1 {[%emt 0:00:11]} Bd7 {[%emt 0:01:36]} 12. Ne5 {[%emt 0:00:43]} Nh5 {[%emt 0:01:16]} 13. Ndf3 {[%emt 0:00:52]} b6 {[%emt 0:01:05]} 14. a4 {[%emt 0:00:57]} Rc8 {[%emt 0:00:17]} 15. cxd5 {[%emt 0:01:44]} exd5 {[%emt 0:00:48]} 16. Be2 {[%emt 0:00:53]} Nf5 {[%emt 0:01:48]} 17. g4 {[%emt 0:02:55]} Nxe3 {[%emt 0:01:26]} 18. fxe3 {[%emt 0:00:32]} Nf6 {[%emt 0:00:20]} 19. h3 {[%emt 0:04:11]} Ne4 {[%emt 0:01:00]} 20. Bd3 {[%emt 0:01:11]} f6 {[%emt 0:01:30]} 21. Nxd7 {[%emt 0:00:17]} Qxd7 {[%emt 0:00:07]} 22. Nd2 {[%emt 0:01:07]} f5 {[%emt 0:01:32]} 23. Nxe4 {[%emt 0:01:50]} fxe4 {[%emt 0:00:55]} 24. Ba6 {[%emt 0:00:42]} Rb8 {[%emt 0:00:29]} 25. Rf1 {[%emt 0:00:11]} b5 {[%emt 0:00:39]} 26. Qe2 {[%emt 0:01:28]} Rb6 {[%emt 0:00:59]} 27. axb5 {[%emt 0:00:13]} cxb5 {[%emt 0:00:40]} 28. Ra1 {[%emt 0:00:18]} Ree6 {[%emt 0:00:41]} 29. Bc8 {[%emt 0:02:19]} Qxc8 {[%emt 0:00:44]} 30. Rxa7 {[%emt 0:00:17]} Rb7 {[%emt 0:01:05]} 31. Rfa1 {[%emt 0:00:40]} Rxa7 {[%emt 0:00:21]} 32. Rxa7 {[%emt 0:00:07]} Qb8 {[%emt 0:00:10]} 33. Rd7 {[%emt 0:01:47]} Qg3+ {[%emt 0:00:56]} 34. Qg2 {[%emt 0:00:08]} Qxe3+ {[%emt 0:00:12]} 35. Kh2 {[%emt 0:00:04]} Rf6 {[%emt 0:01:08]} 36. Rd8+ {[%emt 0:02:09]} Kf7 {[%emt 0:00:12]} 37. Rd7+ {[%emt 0:00:28]} Ke8 {[%emt 0:00:14]} 38. Bc1 {[%emt 0:00:08]} Qf2 {[%emt 0:01:13]} 39. Rxg7 {[%emt 0:00:21]} Qxd4 {[%emt 0:01:02]} 40. Bb2 {[%emt 0:00:55]} Qf2 {[%emt 0:01:10]} 41. Bxf6 {[%emt 0:00:07]} Qxf6 {[%emt 0:00:37]} 42. Rxh7 {[%emt 0:00:19]} Qf4+ {[%emt 0:00:12]} 43. Qg3 {[%emt 0:00:17]} Qd2+ {[%emt 0:00:03]} 44. Qg2 {[%emt 0:00:04]} Qf4+ {[%emt 0:00:03]} 45. Kg1 {[%emt 0:00:07]} Qe3+ {[%emt 0:00:11]} 46. Qf2 {[%emt 0:00:04]} Qc1+ {[%emt 0:00:06]} 47. Kg2 {[%emt 0:00:04]} Qa3 {[%emt 0:01:32]} 48. Qf7+ {[%emt 0:00:06]} Kd8 {[%emt 0:00:05]} 49. Qd7# {[%emt 0:00:03]} 1-0